[Event "SS Manhem Chess Week GM and IM tournaments 2018"]
[Site "Molnlycke kulturhus, Biblioteksgatan 2, Molnlycke, Sweden"]
[Date "2018.08.15"]
[Round "6.10"]
[White "Nedilko, Vasily"]
[Black "Pantzar, Milton"]
[Result "1/2-1/2"]
[TimeControl "90 minutes for 40 moves + 30 minutes for the rest of the game + 30 seconds per move from move one."]
[WhiteTitle "IM"]
[BlackTitle "FM"]
[WhiteFideId "14101459"]
[BlackFideId "1721003"]
[WhiteElo "2369"]
[BlackElo "2306"]

1. d4 {[%clk 01:30:57]} {[%emt 00:00:03]} Nf6 {[%clk 01:30:50]} {[%emt
00:00:10]} 2. c4 {[%clk 01:31:21]} {[%emt 00:00:06]} e6 {[%clk 01:31:14]}
{[%emt 00:00:05]} 3. Nc3 {[%clk 01:30:28]} {[%emt 00:01:23]} Bb4 {[%clk
01:31:20]} {[%emt 00:00:24]} 4. Nf3 {[%clk 01:30:49]} {[%emt 00:00:09]} b6
{[%clk 01:30:45]} {[%emt 00:01:06]} 5. e3 {[%clk 01:29:04]} {[%emt 00:02:15]}
Ne4 {[%clk 01:26:16]} {[%emt 00:04:59]} 6. Qc2 {[%clk 01:29:28]} {[%emt
00:00:06]} Bb7 {[%clk 01:26:21]} {[%emt 00:00:24]} 7. Bd3 {[%clk 01:29:56]}
{[%emt 00:00:02]} f5 {[%clk 01:24:45]} {[%emt 00:02:06]} 8. O-O {[%clk
01:30:23]} {[%emt 00:00:03]} Nxc3 {[%clk 01:18:58]} {[%emt 00:06:17]} 9. bxc3
{[%clk 01:30:38]} {[%emt 00:00:15]} Bxf3 {[%clk 01:18:39]} {[%emt 00:00:49]} 10.
gxf3 {[%clk 01:27:09]} {[%emt 00:03:59]} Bd6 {[%clk 01:18:49]} {[%emt
00:00:20]} 11. f4 {[%clk 01:18:52]} {[%emt 00:08:47]} Qh4 {[%clk 01:17:41]}
{[%emt 00:01:38]} 12. f3 {[%clk 01:09:53]} {[%emt 00:09:28]} O-O {[%clk
01:14:23]} {[%emt 00:03:49]} 13. Qf2 {[%clk 01:02:01]} {[%emt 00:08:22]} Qh6
{[%clk 01:11:33]} {[%emt 00:03:20]} 14. Bd2 {[%clk 00:55:13]} {[%emt 00:07:18]}
Nc6 {[%clk 01:10:22]} {[%emt 00:01:41]} 15. Kh1 {[%clk 00:55:36]} {[%emt
00:00:06]} Na5 {[%clk 01:01:36]} {[%emt 00:09:17]} 16. Rg1 {[%clk 00:46:22]}
{[%emt 00:09:44]} c5 {[%clk 00:56:11]} {[%emt 00:05:54]} 17. Rg3 {[%clk
00:37:59]} {[%emt 00:08:53]} Rac8 {[%clk 00:50:45]} {[%emt 00:05:56]} 18. Qe2
{[%clk 00:37:57]} {[%emt 00:00:31]} Rc7 {[%clk 00:42:37]} {[%emt 00:08:39]} 19.
Rag1 {[%clk 00:37:56]} {[%emt 00:00:31]} g6 {[%clk 00:41:48]} {[%emt 00:01:19]}
20. Rg5 {[%clk 00:29:50]} {[%emt 00:08:35]} Be7 {[%clk 00:36:35]} {[%emt
00:05:44]} 21. R5g2 {[%clk 00:30:18]} {[%emt 00:00:01]} Bd6 {[%clk 00:31:07]}
{[%emt 00:05:59]} 22. Be1 {[%clk 00:29:16]} {[%emt 00:01:32]} Kh8 {[%clk
00:22:32]} {[%emt 00:09:05]} 23. h4 {[%clk 00:28:26]} {[%emt 00:01:19]} Rg8
{[%clk 00:14:37]} {[%emt 00:08:25]} 24. h5 {[%clk 00:19:57]} {[%emt 00:08:58]}
Be7 {[%clk 00:13:04]} {[%emt 00:02:05]} 25. Rh2 {[%clk 00:13:41]} {[%emt
00:06:46]} gxh5 {[%clk 00:11:38]} {[%emt 00:01:56]} 26. Rxg8+ {[%clk 00:13:55]}
{[%emt 00:00:16]} Kxg8 {[%clk 00:12:07]} {[%emt 00:00:02]} 27. e4 {[%clk
00:09:45]} {[%emt 00:04:39]} fxe4 {[%clk 00:10:06]} {[%emt 00:02:31]} 28. fxe4
{[%clk 00:08:34]} {[%emt 00:01:42]} h4 {[%clk 00:10:10]} {[%emt 00:00:26]} 29.
Qg4+ {[%clk 00:07:11]} {[%emt 00:01:54]} Qg6 {[%clk 00:08:12]} {[%emt
00:02:28]} 30. Qf3 {[%clk 00:07:32]} {[%emt 00:00:08]} Qh6 {[%emt 00:02:48]} 31.
d5 {[%clk 00:07:48]} {[%emt 00:00:10]} Rc8 {[%clk 00:05:24]} {[%emt 00:01:03]}
32. Bxh4 {[%clk 00:06:04]} {[%emt 00:02:14]} Bxh4 {[%clk 00:04:54]} {[%emt
00:01:01]} 33. Qg4+ {[%clk 00:06:29]} {[%emt 00:00:04]} Kh8 {[%clk 00:04:39]}
{[%emt 00:00:44]} 34. Rxh4 {[%clk 00:06:44]} {[%emt 00:00:15]} Qg7 {[%clk
00:05:01]} {[%emt 00:00:08]} 35. Qh3 {[%clk 00:04:46]} {[%emt 00:02:27]} Rg8
{[%clk 00:04:53]} {[%emt 00:00:39]} 36. Qh2 {[%clk 00:05:06]} {[%emt 00:00:10]}
Qf7 {[%clk 00:03:44]} {[%emt 00:01:39]} 37. f5 {[%clk 00:02:47]} {[%emt
00:02:49]} exf5 {[%clk 00:03:03]} {[%emt 00:01:11]} 38. Qe5+ {[%clk 00:01:39]}
{[%emt 00:01:38]} Qg7 {[%clk 00:03:00]} {[%emt 00:00:34]} 39. Qxg7+ {[%clk
00:01:59]} {[%emt 00:00:10]} Rxg7 {[%clk 00:01:44]} {[%emt 00:01:46]} 40. exf5
{[%clk 00:00:32]} {[%emt 00:01:57]} Nb7 {[%clk 00:00:58]} {[%emt 00:01:15]} 41.
f6 {[%clk 00:28:33]} {[%emt 00:02:30]} Rf7 {[%clk 00:28:29]} {[%emt 00:02:58]}
42. Bg6 {[%clk 00:28:02]} {[%emt 00:01:01]} Rxf6 {[%clk 00:28:45]} {[%emt
00:00:15]} 43. Rxh7+ {[%clk 00:28:28]} {[%emt 00:00:04]} Kg8 {[%clk 00:29:10]}
{[%emt 00:00:05]} 44. Rxd7 {[%clk 00:28:55]} {[%emt 00:00:04]} Rxg6 {[%clk
00:15:44]} {[%emt 00:13:56]} 45. Rxb7 {[%clk 00:29:20]} {[%emt 00:00:06]} Rg3
{[%clk 00:16:00]} {[%emt 00:00:14]} 46. Rxa7 {[%clk 00:18:40]} {[%emt
00:11:10]} Rxc3 {[%clk 00:16:22]} {[%emt 00:00:08]} 47. Rb7 {[%clk 00:17:50]}
{[%emt 00:01:19]} Rxc4 {[%clk 00:15:23]} {[%emt 00:01:29]} 48. Rxb6 {[%clk
00:18:17]} {[%emt 00:00:03]} Kf7 {[%clk 00:14:45]} {[%emt 00:01:08]} 49. Rc6
{[%clk 00:17:10]} {[%emt 00:01:36]} Ra4 {[%clk 00:14:37]} {[%emt 00:00:39]} 50.
Kg2 {[%clk 00:17:20]} {[%emt 00:00:19]} Rxa2+ {[%clk 00:14:52]} {[%emt
00:00:16]} 51. Kf3 {[%clk 00:17:39]} {[%emt 00:00:10]} Ke7 {[%clk 00:14:02]}
{[%emt 00:01:20]} 52. Ke4 {[%clk 00:17:26]} {[%emt 00:00:43]} Ra1 {[%clk
00:13:56]} {[%emt 00:00:37]} 53. Rxc5 {[%clk 00:17:31]} {[%emt 00:00:25]} Re1+
{[%clk 00:14:17]} {[%emt 00:00:09]} 54. Kd4 {[%clk 00:17:58]} {[%emt 00:00:02]}
Rd1+ {[%clk 00:14:41]} {[%emt 00:00:07]} 55. Kc4 {[%clk 00:18:11]} {[%emt
00:00:16]} Rc1+ {[%clk 00:14:57]} {[%emt 00:00:14]} 56. Kb5 {[%clk 00:18:39]}
{[%emt 00:00:02]} Rxc5+ {[%clk 00:15:15]} {[%emt 00:00:12]} 57. Kxc5 {[%clk
00:19:01]} {[%emt 00:00:07]} Kd7 {[%clk 00:15:43]} {[%emt 00:00:02]} 58. d6
{[%clk 00:19:20]} {[%emt 00:00:11]} Kd8 {[%clk 00:16:07]} {[%emt 00:00:07]} 59.
Kd4 {[%clk 00:19:46]} {[%emt 00:00:04]} Kd7 {[%clk 00:16:08]} {[%emt 00:00:29]}
60. Kd5 {[%clk 00:20:09]} {[%emt 00:00:07]} Kd8 {[%clk 00:16:34]} {[%emt
00:00:05]} 61. Ke6 {[%clk 00:20:35]} {[%emt 00:00:03]} Ke8 {[%clk 00:16:58]}
{[%emt 00:00:06]} 62. d7+ {[%clk 00:20:51]} {[%emt 00:00:14]} Kd8 {[%clk
00:17:24]} {[%emt 00:00:04]} 63. Kd6 {[%emt 00:00:12]} 1/2-1/2

[Event "SS Manhem Chess Week GM and IM tournaments 2018"]
[Site "Molnlycke kulturhus, Biblioteksgatan 2, Molnlycke, Sweden"]
[Date "2018.08.15"]
[Round "7.1"]
[White "Christiansen, Johan-Sebastian"]
[Black "Sammalvuo, Tapani"]
[Result "1-0"]
[TimeControl "90 minutes for 40 moves + 30 minutes for the rest of the game + 30 seconds per move from move one."]
[WhiteTitle "IM"]
[BlackTitle "IM"]
[WhiteFideId "1512668"]
[BlackFideId "501115"]
[WhiteElo "2515"]
[BlackElo "2411"]

1. d4 {[%clk 01:30:56]} {[%emt 00:00:03]} Nf6 {[%clk 01:30:36]} {[%emt
00:00:24]} 2. c4 {[%clk 01:31:14]} {[%emt 00:00:12]} e6 {[%clk 01:30:58]}
{[%emt 00:00:08]} 3. Nc3 {[%clk 01:31:17]} {[%emt 00:00:28]} Bb4 {[%clk
01:31:23]} {[%emt 00:00:04]} 4. Qc2 {[%clk 01:31:20]} {[%emt 00:00:27]} c5
{[%clk 01:30:44]} {[%emt 00:01:09]} 5. dxc5 {[%clk 01:30:53]} {[%emt 00:00:58]}
O-O {[%clk 01:29:41]} {[%emt 00:01:33]} 6. a3 {[%clk 01:30:52]} {[%emt
00:00:32]} Bxc5 {[%clk 01:30:09]} {[%emt 00:00:02]} 7. Nf3 {[%clk 01:31:14]}
{[%emt 00:00:07]} b6 {[%clk 01:29:55]} {[%emt 00:00:45]} 8. Bf4 {[%clk
01:31:16]} {[%emt 00:00:27]} Bb7 {[%clk 01:30:00]} {[%emt 00:00:25]} 9. Rd1
{[%clk 01:31:42]} {[%emt 00:00:05]} Nc6 {[%clk 01:20:28]} {[%emt 00:10:02]} 10.
b4 {[%clk 01:31:52]} {[%emt 00:00:20]} Be7 {[%clk 01:20:53]} {[%emt 00:00:04]}
11. e4 {[%clk 01:32:13]} {[%emt 00:00:10]} Nh5 {[%clk 01:20:02]} {[%emt
00:01:20]} 12. Bc1 {[%clk 01:32:39]} {[%emt 00:00:05]} Qc7 {[%clk 01:19:40]}
{[%emt 00:00:51]} 13. Be2 {[%clk 01:32:54]} {[%emt 00:00:15]} Rad8 {[%clk
01:02:23]} {[%emt 00:17:47]} 14. O-O {[%clk 01:30:09]} {[%emt 00:03:16]} Nf4
{[%clk 01:02:11]} {[%emt 00:00:42]} 15. Bb2 {[%clk 01:01:23]} {[%emt 00:29:17]}
a5 {[%clk 00:45:29]} {[%emt 00:17:12]} 16. Nb5 {[%clk 00:54:09]} {[%emt
00:07:44]} Qb8 {[%clk 00:42:29]} {[%emt 00:03:30]} 17. bxa5 {[%clk 00:54:18]}
{[%emt 00:00:22]} Nxa5 {[%clk 00:41:37]} {[%emt 00:01:21]} 18. Be5 {[%clk
00:47:03]} {[%emt 00:07:45]} Nxe2+ {[%clk 00:42:04]} {[%emt 00:00:03]} 19. Qxe2
{[%clk 00:47:29]} {[%emt 00:00:05]} d6 {[%clk 00:42:23]} {[%emt 00:00:11]} 20.
Bb2 {[%clk 00:44:58]} {[%emt 00:03:00]} Qc8 {[%clk 00:39:22]} {[%emt 00:03:31]}
21. Nd2 {[%clk 00:42:47]} {[%emt 00:02:41]} Ba6 {[%clk 00:38:56]} {[%emt
00:00:56]} 22. a4 {[%clk 00:39:43]} {[%emt 00:03:35]} Rfe8 {[%clk 00:37:12]}
{[%emt 00:02:14]} 23. Bd4 {[%clk 00:35:51]} {[%emt 00:04:22]} Qc6 {[%clk
00:37:15]} {[%emt 00:00:26]} 24. Rb1 {[%clk 00:33:24]} {[%emt 00:02:57]} Rd7
{[%clk 00:37:18]} {[%emt 00:00:28]} 25. Rfc1 {[%clk 00:32:09]} {[%emt
00:01:46]} Ra8 {[%clk 00:31:51]} {[%emt 00:05:57]} 26. Qg4 {[%clk 00:25:14]}
{[%emt 00:07:25]} g6 {[%clk 00:32:14]} {[%emt 00:00:07]} 27. Rc3 {[%clk
00:24:54]} {[%emt 00:00:49]} f5 {[%clk 00:27:26]} {[%emt 00:05:18]} 28. exf5
{[%clk 00:23:27]} {[%emt 00:01:58]} exf5 {[%clk 00:27:53]} {[%emt 00:00:03]} 29.
Qe2 {[%clk 00:23:35]} {[%emt 00:00:21]} Bb7 {[%clk 00:28:20]} {[%emt 00:00:03]}
30. Qe6+ {[%clk 00:17:52]} {[%emt 00:06:13]} Kf8 {[%clk 00:28:49]} {[%emt
00:00:02]} 31. Rf3 {[%clk 00:15:52]} {[%emt 00:02:30]} Bg5 {[%clk 00:25:33]}
{[%emt 00:03:45]} 32. Rxf5+ {[%clk 00:13:49]} {[%emt 00:02:34]} gxf5 {[%clk
00:26:01]} {[%emt 00:00:02]} 33. Qxf5+ {[%clk 00:14:10]} {[%emt 00:00:10]} Rf7
{[%clk 00:26:28]} {[%emt 00:00:03]} 34. Qxg5 {[%clk 00:14:34]} {[%emt
00:00:06]} Re8 {[%clk 00:25:37]} {[%emt 00:01:21]} 35. Qh6+ {[%clk 00:14:05]}
{[%emt 00:01:00]} Kg8 {[%clk 00:26:00]} {[%emt 00:00:06]} 36. Qg5+ {[%clk
00:14:32]} {[%emt 00:00:03]} Kf8 {[%clk 00:26:25]} {[%emt 00:00:06]} 37. f3
{[%clk 00:08:43]} {[%emt 00:06:19]} Nxc4 {[%clk 00:26:46]} {[%emt 00:00:09]} 38.
Qh6+ {[%clk 00:07:53]} {[%emt 00:01:20]} Kg8 {[%clk 00:27:13]} {[%emt
00:00:03]} 39. Qg5+ {[%clk 00:08:20]} {[%emt 00:00:03]} Kf8 {[%clk 00:27:41]}
{[%emt 00:00:03]} 40. Ne4 {[%clk 00:00:40]} {[%emt 00:08:10]} Rxe4 {[%clk
00:27:14]} {[%emt 00:00:55]} 41. fxe4 {[%clk 00:30:24]} {[%emt 00:00:48]} Qxe4
{[%clk 00:57:22]} {[%emt 00:00:21]} 42. Rc1 {[%clk 00:20:42]} {[%emt 00:10:13]}
Ne5 {[%clk 00:54:22]} {[%emt 00:03:29]} 43. h3 {[%clk 00:11:43]} {[%emt
00:09:29]} Qf4 {[%clk 00:49:03]} {[%emt 00:05:49]} 44. Qxf4 {[%clk 00:06:06]}
{[%emt 00:06:08]} Rxf4 {[%clk 00:49:31]} {[%emt 00:00:01]} 45. Rc7 {[%clk
00:05:36]} {[%emt 00:00:59]} Ba6 {[%clk 00:49:40]} {[%emt 00:00:22]} 46. Be3
{[%clk 00:04:46]} {[%emt 00:01:20]} Rxa4 {[%clk 00:43:11]} {[%emt 00:06:59]} 47.
Nxd6 {[%clk 00:04:27]} {[%emt 00:00:49]} h5 {[%clk 00:28:22]} {[%emt 00:15:19]}
48. Ra7 {[%clk 00:03:03]} {[%emt 00:01:54]} Kg8 {[%clk 00:26:40]} {[%emt
00:02:12]} 49. Bg5 {[%clk 00:03:04]} {[%emt 00:00:29]} Ra1+ {[%clk 00:24:49]}
{[%emt 00:02:21]} 50. Kh2 {[%clk 00:03:33]} {[%emt 00:00:01]} Rd1 {[%clk
00:25:13]} {[%emt 00:00:06]} 51. Ne4 {[%clk 00:03:25]} {[%emt 00:00:38]} Bd3
{[%clk 00:25:05]} {[%emt 00:00:37]} 52. Nf6+ {[%clk 00:03:52]} {[%emt
00:00:04]} Kh8 {[%clk 00:25:31]} {[%emt 00:00:04]} 53. Bh6 {[%clk 00:04:16]}
{[%emt 00:00:06]} 1-0

[Event "SS Manhem Chess Week GM and IM tournaments 2018"]
[Site "Molnlycke kulturhus, Biblioteksgatan 2, Molnlycke, Sweden"]
[Date "2018.08.15"]
[Round "7.2"]
[White "Lindberg, Bengt"]
[Black "Rozentalis, Eduardas"]
[Result "0-1"]
[TimeControl "90 minutes for 40 moves + 30 minutes for the rest of the game + 30 seconds per move from move one."]
[WhiteTitle "IM"]
[BlackTitle "GM"]
[WhiteFideId "1700359"]
[BlackFideId "12800023"]
[WhiteElo "2416"]
[BlackElo "2503"]

1. e4 {[%clk 01:30:37]} {[%emt 00:00:22]} c6 {[%clk 01:30:22]} {[%emt
00:00:38]} 2. d4 {[%clk 01:28:29]} {[%emt 00:02:38]} g6 {[%clk 01:30:07]}
{[%emt 00:00:45]} 3. Nc3 {[%clk 01:28:03]} {[%emt 00:00:56]} d5 {[%clk
01:29:58]} {[%emt 00:00:39]} 4. Nf3 {[%clk 01:28:00]} {[%emt 00:00:32]} Bg7
{[%clk 01:30:16]} {[%emt 00:00:13]} 5. h3 {[%clk 01:27:49]} {[%emt 00:00:40]}
Nh6 {[%clk 01:29:04]} {[%emt 00:01:42]} 6. Be2 {[%clk 01:26:10]} {[%emt
00:02:09]} O-O {[%clk 01:28:26]} {[%emt 00:01:09]} 7. O-O {[%clk 01:18:55]}
{[%emt 00:07:44]} f6 {[%clk 01:28:39]} {[%emt 00:00:18]} 8. Nh2 {[%clk
01:13:41]} {[%emt 00:05:43]} Nf7 {[%clk 01:26:42]} {[%emt 00:02:28]} 9. exd5
{[%clk 01:07:07]} {[%emt 00:07:04]} cxd5 {[%clk 01:26:55]} {[%emt 00:00:16]} 10.
f4 {[%clk 01:06:55]} {[%emt 00:00:42]} Nc6 {[%clk 01:24:43]} {[%emt 00:02:42]}
11. Bf3 {[%clk 01:04:22]} {[%emt 00:03:02]} e6 {[%clk 01:22:51]} {[%emt
00:02:22]} 12. Kh1 {[%clk 00:53:53]} {[%emt 00:10:58]} f5 {[%clk 01:14:02]}
{[%emt 00:09:21]} 13. Be3 {[%clk 00:51:20]} {[%emt 00:03:03]} Nd6 {[%clk
01:13:27]} {[%emt 00:01:05]} 14. Be2 {[%clk 00:51:26]} {[%emt 00:00:23]} Ne4
{[%clk 01:05:33]} {[%emt 00:08:25]} 15. Nxe4 {[%clk 00:50:18]} {[%emt
00:01:38]} dxe4 {[%clk 01:05:50]} {[%emt 00:00:13]} 16. c3 {[%clk 00:50:41]}
{[%emt 00:00:07]} Ne7 {[%clk 01:05:59]} {[%emt 00:00:21]} 17. c4 {[%clk
00:48:17]} {[%emt 00:02:54]} b5 {[%clk 00:59:10]} {[%emt 00:07:20]} 18. b3
{[%clk 00:48:22]} {[%emt 00:00:25]} Bb7 {[%clk 00:56:18]} {[%emt 00:03:22]} 19.
Qd2 {[%clk 00:47:40]} {[%emt 00:01:10]} bxc4 {[%clk 00:51:12]} {[%emt
00:05:37]} 20. bxc4 {[%clk 00:48:03]} {[%emt 00:00:06]} Qd7 {[%clk 00:51:07]}
{[%emt 00:00:36]} 21. Rfd1 {[%clk 00:46:41]} {[%emt 00:01:52]} Rfd8 {[%clk
00:50:40]} {[%emt 00:00:57]} 22. Rab1 {[%clk 00:45:44]} {[%emt 00:01:28]} Rac8
{[%clk 00:49:58]} {[%emt 00:01:12]} 23. Qa5 {[%clk 00:41:55]} {[%emt 00:04:18]}
Nc6 {[%clk 00:37:16]} {[%emt 00:13:12]} 24. Qa3 {[%clk 00:31:27]} {[%emt
00:10:58]} Ba8 {[%clk 00:31:44]} {[%emt 00:06:03]} 25. d5 {[%clk 00:30:01]}
{[%emt 00:01:55]} exd5 {[%clk 00:31:27]} {[%emt 00:00:47]} 26. Rxd5 {[%clk
00:30:25]} {[%emt 00:00:06]} Qc7 {[%clk 00:27:02]} {[%emt 00:04:56]} 27. Rbd1
{[%clk 00:28:45]} {[%emt 00:02:09]} Bf8 {[%clk 00:21:56]} {[%emt 00:05:36]} 28.
Qb2 {[%clk 00:28:49]} {[%emt 00:00:25]} Nb4 {[%clk 00:19:33]} {[%emt 00:02:55]}
29. Rxd8 {[%clk 00:22:38]} {[%emt 00:06:42]} Rxd8 {[%clk 00:19:58]} {[%emt
00:00:05]} 30. Rxd8 {[%clk 00:23:04]} {[%emt 00:00:04]} Qxd8 {[%clk 00:20:22]}
{[%emt 00:00:06]} 31. Qe5 {[%clk 00:22:45]} {[%emt 00:00:47]} Qd6 {[%clk
00:17:28]} {[%emt 00:03:25]} 32. Qa5 {[%clk 00:06:50]} {[%emt 00:16:24]} Nc6
{[%clk 00:14:24]} {[%emt 00:03:34]} 33. Qc3 {[%clk 00:06:35]} {[%emt 00:00:44]}
Qb4 {[%clk 00:09:06]} {[%emt 00:05:49]} 34. Qc1 {[%clk 00:06:55]} {[%emt
00:00:10]} Bc5 {[%clk 00:07:11]} {[%emt 00:02:25]} 35. Bxc5 {[%clk 00:04:34]}
{[%emt 00:02:50]} Qxc5 {[%clk 00:07:33]} {[%emt 00:00:09]} 36. Nf1 {[%clk
00:04:58]} {[%emt 00:00:05]} Qf2 {[%clk 00:03:55]} {[%emt 00:04:08]} 37. Qe3
{[%clk 00:05:06]} {[%emt 00:00:21]} Qxe3 {[%clk 00:04:13]} {[%emt 00:00:13]} 38.
Nxe3 {[%clk 00:05:34]} {[%emt 00:00:02]} Nd4 {[%clk 00:04:28]} {[%emt
00:00:15]} 39. Bd1 {[%clk 00:05:44]} {[%emt 00:00:20]} Kf7 {[%clk 00:03:59]}
{[%emt 00:01:00]} 40. g4 {[%clk 00:02:22]} {[%emt 00:03:51]} g5 {[%clk
00:03:30]} {[%emt 00:01:00]} 41. gxf5 {[%clk 00:28:05]} {[%emt 00:04:47]} gxf4
{[%clk 00:33:10]} {[%emt 00:00:49]} 0-1

[Event "SS Manhem Chess Week GM and IM tournaments 2018"]
[Site "Molnlycke kulturhus, Biblioteksgatan 2, Molnlycke, Sweden"]
[Date "2018.08.15"]
[Round "7.4"]
[White "Vestby-Ellingsen, Mads"]
[Black "Johansson, Linus"]
[Result "1/2-1/2"]
[TimeControl "90 minutes for 40 moves + 30 minutes for the rest of the game + 30 seconds per move from move one."]
[WhiteTitle "FM"]
[BlackTitle "IM"]
[WhiteFideId "1520857"]
[BlackFideId "1711113"]
[WhiteElo "2409"]
[BlackElo "2457"]

1. d4 {[%clk 01:30:52]} {[%emt 00:00:05]} Nf6 {[%clk 01:30:57]} {[%emt
00:00:05]} 2. c4 {[%clk 01:31:12]} {[%emt 00:00:10]} e6 {[%clk 01:31:24]}
{[%emt 00:00:04]} 3. Nc3 {[%clk 01:31:29]} {[%emt 00:00:11]} Bb4 {[%clk
01:31:50]} {[%emt 00:00:05]} 4. e3 {[%clk 01:31:47]} {[%emt 00:00:11]} O-O
{[%clk 01:30:51]} {[%emt 00:01:30]} 5. Bd3 {[%clk 01:31:53]} {[%emt 00:00:23]}
d5 {[%clk 01:26:09]} {[%emt 00:05:14]} 6. Nf3 {[%clk 01:32:00]} {[%emt
00:00:22]} c5 {[%clk 01:26:20]} {[%emt 00:00:21]} 7. O-O {[%clk 01:32:03]}
{[%emt 00:00:26]} dxc4 {[%clk 01:26:22]} {[%emt 00:00:28]} 8. Bxc4 {[%clk
01:32:20]} {[%emt 00:00:11]} Nbd7 {[%clk 01:26:49]} {[%emt 00:00:05]} 9. Qe2
{[%clk 01:32:27]} {[%emt 00:00:21]} b6 {[%clk 01:26:24]} {[%emt 00:00:57]} 10.
Rd1 {[%clk 01:32:16]} {[%emt 00:00:39]} cxd4 {[%clk 01:21:21]} {[%emt
00:05:35]} 11. exd4 {[%clk 01:30:22]} {[%emt 00:02:23]} Bxc3 {[%clk 01:19:48]}
{[%emt 00:02:04]} 12. bxc3 {[%clk 01:30:40]} {[%emt 00:00:10]} Bb7 {[%clk
01:20:11]} {[%emt 00:00:07]} 13. Bb3 {[%clk 01:24:57]} {[%emt 00:06:13]} Qc7
{[%clk 01:15:39]} {[%emt 00:05:03]} 14. c4 {[%clk 01:23:44]} {[%emt 00:01:41]}
Rac8 {[%clk 01:16:05]} {[%emt 00:00:05]} 15. Bb2 {[%clk 01:22:19]} {[%emt
00:01:54]} Qf4 {[%clk 01:15:29]} {[%emt 00:01:07]} 16. Qe3 {[%clk 00:46:14]}
{[%emt 00:36:34]} Qxe3 {[%clk 01:07:42]} {[%emt 00:08:17]} 17. fxe3 {[%clk
00:46:35]} {[%emt 00:00:08]} Ne4 {[%clk 01:08:10]} {[%emt 00:00:03]} 18. Rac1
{[%clk 00:45:54]} {[%emt 00:01:10]} Rc7 {[%clk 01:06:28]} {[%emt 00:02:13]} 19.
Rc2 {[%clk 00:40:40]} {[%emt 00:05:43]} Rfc8 {[%clk 01:06:00]} {[%emt
00:00:59]} 20. Rdc1 {[%clk 00:40:10]} {[%emt 00:00:59]} a5 {[%clk 01:02:09]}
{[%emt 00:04:22]} 21. Ba3 {[%clk 00:33:26]} {[%emt 00:07:13]} Ba6 {[%clk
00:48:34]} {[%emt 00:14:06]} 22. Ba4 {[%clk 00:32:41]} {[%emt 00:01:14]} Nb8
{[%clk 00:42:46]} {[%emt 00:06:19]} 23. Bb3 {[%clk 00:30:02]} {[%emt 00:03:09]}
Nd7 {[%clk 00:38:56]} {[%emt 00:04:21]} 24. Ba4 {[%clk 00:28:57]} {[%emt
00:01:34]} f6 {[%clk 00:39:18]} {[%emt 00:00:09]} 25. Bb3 {[%clk 00:26:35]}
{[%emt 00:02:51]} Kf7 {[%clk 00:38:22]} {[%emt 00:01:27]} 26. Ne1 {[%clk
00:21:42]} {[%emt 00:05:22]} g5 {[%clk 00:29:00]} {[%emt 00:09:53]} 27. Nd3
{[%clk 00:21:25]} {[%emt 00:00:47]} h5 {[%clk 00:23:54]} {[%emt 00:05:37]} 28.
Ba4 {[%clk 00:18:47]} {[%emt 00:03:08]} Nb8 {[%clk 00:21:51]} {[%emt 00:02:34]}
29. Bb3 {[%clk 00:17:31]} {[%emt 00:01:45]} h4 {[%clk 00:21:02]} {[%emt
00:01:19]} 30. h3 {[%clk 00:16:10]} {[%emt 00:01:49]} Nd7 {[%clk 00:20:05]}
{[%emt 00:01:29]} 31. Ne1 {[%clk 00:12:55]} {[%emt 00:03:45]} Nf8 {[%clk
00:17:26]} {[%emt 00:03:10]} 32. Nf3 {[%clk 00:11:55]} {[%emt 00:01:29]} Ng6
{[%clk 00:15:15]} {[%emt 00:02:42]} 33. Kh2 {[%clk 00:09:25]} {[%emt 00:02:58]}
a4 {[%clk 00:11:39]} {[%emt 00:04:07]} 34. Bxa4 {[%clk 00:09:46]} {[%emt
00:00:09]} Rxc4 {[%clk 00:12:06]} {[%emt 00:00:03]} 35. Bb3 {[%clk 00:08:03]}
{[%emt 00:02:12]} Rxc2 {[%clk 00:11:22]} {[%emt 00:01:15]} 36. Rxc2 {[%clk
00:07:17]} {[%emt 00:01:16]} Ne7 {[%clk 00:11:36]} {[%emt 00:00:16]} 37. Rxc8
{[%clk 00:05:59]} {[%emt 00:01:48]} Bxc8 {[%clk 00:12:01]} {[%emt 00:00:06]} 38.
Bc1 {[%clk 00:03:00]} {[%emt 00:03:28]} Bb7 {[%clk 00:12:01]} {[%emt 00:00:30]}
39. a4 {[%clk 00:01:14]} {[%emt 00:02:15]} Bc6 {[%clk 00:09:38]} {[%emt
00:02:54]} 40. Nd2 {[%clk 00:00:31]} {[%emt 00:01:13]} Nc3 {[%clk 00:09:41]}
{[%emt 00:00:26]} 41. Nc4 {[%clk 00:25:51]} {[%emt 00:05:10]} Ned5 {[%clk
00:26:42]} {[%emt 00:13:30]} 42. a5 {[%clk 00:14:40]} {[%emt 00:11:41]} bxa5
{[%clk 00:26:59]} {[%emt 00:00:14]} 43. Nxa5 {[%clk 00:14:59]} {[%emt
00:00:10]} Ba8 {[%clk 00:27:20]} {[%emt 00:00:08]} 44. Nc4 {[%clk 00:14:20]}
{[%emt 00:01:09]} Ne4 {[%clk 00:26:25]} {[%emt 00:01:26]} 45. Nd2 {[%clk
00:11:21]} {[%emt 00:03:29]} Ndc3 {[%clk 00:24:38]} {[%emt 00:02:18]} 46. Nxe4
{[%clk 00:10:24]} {[%emt 00:01:27]} Bxe4 {[%clk 00:25:03]} {[%emt 00:00:06]} 47.
Bd2 {[%clk 00:09:19]} {[%emt 00:01:33]} Nb5 {[%clk 00:24:46]} {[%emt 00:00:47]}
48. Bb4 {[%clk 00:09:14]} {[%emt 00:00:35]} Nc7 {[%clk 00:24:59]} {[%emt
00:00:18]} 49. g3 {[%clk 00:08:03]} {[%emt 00:01:40]} hxg3+ {[%clk 00:24:09]}
{[%emt 00:01:21]} 50. Kxg3 {[%clk 00:08:24]} {[%emt 00:00:08]} Nd5 {[%clk
00:24:07]} {[%emt 00:00:33]} 51. Bxd5 {[%clk 00:08:44]} {[%emt 00:00:10]} exd5
{[%clk 00:24:31]} {[%emt 00:00:06]} 52. h4 {[%clk 00:09:02]} {[%emt 00:00:10]}
Kg6 {[%clk 00:24:54]} {[%emt 00:00:09]} 1/2-1/2